[Event "Titled Tuesday Blitz November 15 Early 2022"]
[White "Storey, Charles H"]
[Black "Goroshkov, Maksym"]
[WhiteFideId "406686"]
[BlackFideId "14142716"]
[WhiteElo "2252"]
[BlackElo "2257"]
[Result "1/2-1/2"]
[Round "09"]
[TimeControl "180+1"]
[Date "2022.11.16"]
[WhiteClock "0:00:09"]
[BlackClock "0:00:15"]

1. c4 {[%clk 0:03:00]}  Nf6 {[%clk 0:02:59]} 2. g3 {[%clk 0:02:58]}  d6 {[%clk 0:02:58]} 3. Bg2 {[%clk 0:02:58]}  g6 {[%clk 0:02:58]} 4. d4 {[%clk 0:02:56]}  Bg7 {[%clk 0:02:58]} 5. Nf3 {[%clk 0:02:56]}  O-O {[%clk 0:02:58]} 6. O-O {[%clk 0:02:56]}  c5 {[%clk 0:02:58]} 7. d5 {[%clk 0:02:48]}  Bg4 {[%clk 0:02:56]} 8. Nc3 {[%clk 0:02:47]}  Qc8 {[%clk 0:02:55]} 9. Re1 {[%clk 0:02:45]}  Nbd7 {[%clk 0:02:54]} 10. h3 {[%clk 0:02:29]}  Bxf3 {[%clk 0:02:52]} 11. exf3 {[%clk 0:02:30]}  Nb6 {[%clk 0:02:46]} 12. Bf1 {[%clk 0:02:19]}  Re8 {[%clk 0:02:42]} 13. Bg5 {[%clk 0:02:07]}  e5 {[%clk 0:02:37]} 14. dxe6 {[%clk 0:02:02]}  Rxe6 {[%clk 0:02:36]} 15. Qd3 {[%clk 0:01:43]}  Qd7 {[%clk 0:02:07]} 16. Red1 {[%clk 0:01:42]}  Rd8 {[%clk 0:02:01]} 17. h4 {[%clk 0:01:39]}  h6 {[%clk 0:01:58]} 18. Bxf6 {[%clk 0:01:30]}  Bxf6 {[%clk 0:01:53]} 19. Bh3 {[%clk 0:01:28]}  Bxc3 {[%clk 0:01:45]} 20. bxc3 {[%clk 0:01:22]}  Qe7 {[%clk 0:01:45]} 21. Bxe6 {[%clk 0:01:21]}  Qxe6 {[%clk 0:01:46]} 22. Rab1 {[%clk 0:01:15]}  Nxc4 {[%clk 0:01:41]} 23. Rxb7 {[%clk 0:01:11]}  Ne5 {[%clk 0:01:40]} 24. Qe4 {[%clk 0:00:59]}  d5 {[%clk 0:01:36]} 25. Qf4 {[%clk 0:00:53]}  d4 {[%clk 0:01:31]} 26. cxd4 {[%clk 0:00:47]}  cxd4 {[%clk 0:01:31]} 27. Kg2 {[%clk 0:00:47]}  d3 {[%clk 0:01:30]} 28. Re1 {[%clk 0:00:35]}  Qd5 {[%clk 0:00:49]} 29. Re7 {[%clk 0:00:25]}  Nc6 {[%clk 0:00:30]} 30. Re8+ {[%clk 0:00:17]}  Rxe8 {[%clk 0:00:28]} 31. Rxe8+ {[%clk 0:00:18]}  Kg7 {[%clk 0:00:28]} 32. Re1 {[%clk 0:00:16]}  Qxa2 {[%clk 0:00:20]} 33. Rd1 {[%clk 0:00:14]}  Qc2 {[%clk 0:00:19]} 34. Qd2 {[%clk 0:00:14]}  Qxd2 {[%clk 0:00:18]} 35. Rxd2 {[%clk 0:00:15]}  Nb4 {[%clk 0:00:18]} 36. Rb2 {[%clk 0:00:11]}  a5 {[%clk 0:00:18]} 37. Kf1 {[%clk 0:00:12]}  Kf6 {[%clk 0:00:17]} 38. Ke1 {[%clk 0:00:12]}  Ke5 {[%clk 0:00:18]} 39. Kd2 {[%clk 0:00:12]}  Kd4 {[%clk 0:00:18]} 40. Rb3 {[%clk 0:00:12]}  Kc4 {[%clk 0:00:17]} 41. Ra3 {[%clk 0:00:12]}  Kb5 {[%clk 0:00:17]} 42. Rc3 {[%clk 0:00:10]}  a4 {[%clk 0:00:17]} 43. Rc7 {[%clk 0:00:10]}  a3 {[%clk 0:00:17]} 44. Rb7+ {[%clk 0:00:09]}  Kc4 {[%clk 0:00:16]} 45. Ra7 {[%clk 0:00:08]}  Kb3 {[%clk 0:00:16]} 46. Rxf7 {[%clk 0:00:08]}  a2 {[%clk 0:00:16]} 47. Ra7 {[%clk 0:00:07]}  Kb2 {[%clk 0:00:16]} 48. Ra4 {[%clk 0:00:07]}  a1=Q {[%clk 0:00:15]} 49. Rxa1 {[%clk 0:00:04]}  Kxa1 {[%clk 0:00:16]} 50. f4 {[%clk 0:00:03]}  Kb2 {[%clk 0:00:13]} 51. g4 {[%clk 0:00:03]}  Kb3 {[%clk 0:00:14]} 52. f5 {[%clk 0:00:04]}  gxf5 {[%clk 0:00:13]} 53. g5 {[%clk 0:00:04]}  hxg5 {[%clk 0:00:11]} 54. h5 {[%clk 0:00:04]}  Nd5 {[%clk 0:00:11]} 55. h6 {[%clk 0:00:05]}  Nf6 {[%clk 0:00:10]} 56. Kxd3 {[%clk 0:00:04]}  Kb4 {[%clk 0:00:10]} 57. Kd4 {[%clk 0:00:05]}  Kb5 {[%clk 0:00:11]} 58. Ke5 {[%clk 0:00:05]}  Ng4+ {[%clk 0:00:11]} 59. Kxf5 {[%clk 0:00:05]}  Nxh6+ {[%clk 0:00:11]} 60. Kxg5 {[%clk 0:00:06]}  Ng8 {[%clk 0:00:12]} 61. Kf5 {[%clk 0:00:05]}  Kc6 {[%clk 0:00:12]} 62. Ke6 {[%clk 0:00:06]}  Kc7 {[%clk 0:00:11]} 63. Kf7 {[%clk 0:00:06]}  Nh6+ {[%clk 0:00:10]} 64. Kg6 {[%clk 0:00:05]}  Ng4 {[%clk 0:00:10]} 65. f4 {[%clk 0:00:04]}  Ne3 {[%clk 0:00:11]} 66. Kg5 {[%clk 0:00:03]}  Kd6 {[%clk 0:00:11]} 67. f5 {[%clk 0:00:04]}  Ke7 {[%clk 0:00:11]} 68. f6+ {[%clk 0:00:05]}  Kf7 {[%clk 0:00:11]} 69. Kf4 {[%clk 0:00:05]}  Nc4 {[%clk 0:00:12]} 70. Kf3 {[%clk 0:00:06]}  Nb6 {[%clk 0:00:13]} 71. Kg2 {[%clk 0:00:07]}  Na8 {[%clk 0:00:13]} 72. Kh1 {[%clk 0:00:08]}  Nc7 {[%clk 0:00:14]} 73. Kg2 {[%clk 0:00:09]}  Ne8 {[%clk 0:00:14]} 74. Kh1 {[%clk 0:00:09]}  Nxf6 {[%clk 0:00:15]} 1/2-1/2


[Site "https://www.chess.com"]

[Event "Titled Tuesday Blitz November 15 Early 2022"]
[White "Stribuk, Artiom"]
[Black "Aumann, Welf"]
[WhiteFideId "13515659"]
[BlackFideId "4634071"]
[WhiteElo "2371"]
[BlackElo "2296"]
[Result "1-0"]
[Round "09"]
[TimeControl "180+1"]
[Date "2022.11.16"]
[WhiteClock "0:00:04"]
[BlackClock "0:00:07"]

1. d4 {[%clk 0:03:00]}  d5 {[%clk 0:02:59]} 2. c4 {[%clk 0:03:01]}  dxc4 {[%clk 0:02:59]} 3. e3 {[%clk 0:03:01]}  e5 {[%clk 0:02:58]} 4. Bxc4 {[%clk 0:03:01]}  exd4 {[%clk 0:02:59]} 5. exd4 {[%clk 0:03:02]}  Bd6 {[%clk 0:02:58]} 6. Nf3 {[%clk 0:02:49]}  Nf6 {[%clk 0:02:56]} 7. O-O {[%clk 0:02:49]}  O-O {[%clk 0:02:57]} 8. h3 {[%clk 0:02:49]}  h6 {[%clk 0:02:57]} 9. Nc3 {[%clk 0:02:49]}  Nc6 {[%clk 0:02:52]} 10. a3 {[%clk 0:02:26]}  Bf5 {[%clk 0:02:48]} 11. Be3 {[%clk 0:02:16]}  Ne4 {[%clk 0:02:36]} 12. Re1 {[%clk 0:02:10]}  Re8 {[%clk 0:02:22]} 13. Qb3 {[%clk 0:01:45]}  Qd7 {[%clk 0:02:20]} 14. Bf1 {[%clk 0:01:34]}  Nxc3 {[%clk 0:02:05]} 15. bxc3 {[%clk 0:01:35]}  Be4 {[%clk 0:02:04]} 16. Nd2 {[%clk 0:01:32]}  Bg6 {[%clk 0:01:53]} 17. c4 {[%clk 0:01:25]}  b6 {[%clk 0:01:49]} 18. Rad1 {[%clk 0:00:56]}  Na5 {[%clk 0:01:40]} 19. Qc3 {[%clk 0:00:53]}  Qa4 {[%clk 0:01:34]} 20. c5 {[%clk 0:00:51]}  bxc5 {[%clk 0:01:33]} 21. dxc5 {[%clk 0:00:52]}  Be5 {[%clk 0:01:31]} 22. Qb4 {[%clk 0:00:52]}  Qxb4 {[%clk 0:01:05]} 23. axb4 {[%clk 0:00:53]}  Nc6 {[%clk 0:00:58]} 24. Bb5 {[%clk 0:00:33]}  Re6 {[%clk 0:00:57]} 25. Bxc6 {[%clk 0:00:27]}  Rxc6 {[%clk 0:00:58]} 26. Nc4 {[%clk 0:00:28]}  Bc3 {[%clk 0:00:45]} 27. Bd2 {[%clk 0:00:27]}  Bf6 {[%clk 0:00:33]} 28. Na5 {[%clk 0:00:27]}  Re6 {[%clk 0:00:32]} 29. Rxe6 {[%clk 0:00:27]}  fxe6 {[%clk 0:00:33]} 30. Bf4 {[%clk 0:00:27]}  Rc8 {[%clk 0:00:27]} 31. Rd7 {[%clk 0:00:24]}  e5 {[%clk 0:00:23]} 32. Be3 {[%clk 0:00:21]}  Be8 {[%clk 0:00:23]} 33. Rd1 {[%clk 0:00:19]}  Bb5 {[%clk 0:00:22]} 34. f3 {[%clk 0:00:09]}  a6 {[%clk 0:00:22]} 35. Kf2 {[%clk 0:00:09]}  Rd8 {[%clk 0:00:19]} 36. Rxd8+ {[%clk 0:00:08]}  Bxd8 {[%clk 0:00:20]} 37. Bd2 {[%clk 0:00:08]}  c6 {[%clk 0:00:19]} 38. Nb3 {[%clk 0:00:07]}  Kf7 {[%clk 0:00:19]} 39. Bc3 {[%clk 0:00:08]}  Ke6 {[%clk 0:00:19]} 40. Nd2 {[%clk 0:00:08]}  Kd5 {[%clk 0:00:18]} 41. g3 {[%clk 0:00:07]}  Bg5 {[%clk 0:00:17]} 42. Ne4 {[%clk 0:00:06]}  Bc1 {[%clk 0:00:16]} 43. Ke1 {[%clk 0:00:03]}  Ba3 {[%clk 0:00:13]} 44. Kd2 {[%clk 0:00:03]}  Kc4 {[%clk 0:00:12]} 45. Nd6+ {[%clk 0:00:03]}  Kb3 {[%clk 0:00:12]} 46. Bxe5 {[%clk 0:00:03]}  Bxb4+ {[%clk 0:00:12]} 47. Kc1 {[%clk 0:00:04]}  Bxc5 {[%clk 0:00:12]} 48. Ne4 {[%clk 0:00:05]}  Bf8 {[%clk 0:00:11]} 49. h4 {[%clk 0:00:03]}  a5 {[%clk 0:00:11]} 50. Nd2+ {[%clk 0:00:03]}  Kb4 {[%clk 0:00:09]} 51. Kb2 {[%clk 0:00:04]}  a4 {[%clk 0:00:07]} 52. Bc3+ {[%clk 0:00:04]}  Kc5 {[%clk 0:00:08]} 53. g4 {[%clk 0:00:05]}  Kd5 {[%clk 0:00:08]} 54. h5 {[%clk 0:00:05]}  a3+ {[%clk 0:00:08]} 55. Kb3 {[%clk 0:00:05]}  Ke6 {[%clk 0:00:07]} 56. Ne4 {[%clk 0:00:05]}  Kd5 {[%clk 0:00:07]} 57. Ba1 {[%clk 0:00:04]}  Bc4+ {[%clk 0:00:08]} 58. Kc2 {[%clk 0:00:04]}  a2 {[%clk 0:00:08]} 59. Nd2 {[%clk 0:00:05]}  Kc5 {[%clk 0:00:07]} 60. Kc3 {[%clk 0:00:04]}  Kb5 {[%clk 0:00:07]} 61. Nxc4 {[%clk 0:00:04]}  Bb4+ {[%clk 0:00:07]} 62. Kb3 {[%clk 0:00:05]}  c5 {[%clk 0:00:07]} 63. Bxg7 {[%clk 0:00:04]} 1-0


[Site "https://www.chess.com"]

[Event "Titled Tuesday Blitz November 15 Early 2022"]
[White "Svane, Frederik"]
[Black "Paravyan, David"]
[WhiteFideId "12923044"]
[BlackFideId "4194985"]
[WhiteElo "2466"]
[BlackElo "2546"]
[Result "1-0"]
[Round "09"]
[TimeControl "180+1"]
[Date "2022.11.15"]
[WhiteClock "0:00:05"]
[BlackClock "0:00:04"]

1. e4 {[%clk 0:03:00]}  e5 {[%clk 0:02:58]} 2. Nf3 {[%clk 0:03:01]}  Nf6 {[%clk 0:02:58]} 3. Nxe5 {[%clk 0:03:01]}  d6 {[%clk 0:02:58]} 4. Nf3 {[%clk 0:03:01]}  Nxe4 {[%clk 0:02:58]} 5. d4 {[%clk 0:03:02]}  d5 {[%clk 0:02:57]} 6. Bd3 {[%clk 0:03:02]}  Bd6 {[%clk 0:02:58]} 7. O-O {[%clk 0:03:01]}  O-O {[%clk 0:02:57]} 8. Re1 {[%clk 0:02:59]}  Bf5 {[%clk 0:02:57]} 9. c4 {[%clk 0:02:52]}  c6 {[%clk 0:02:56]} 10. Ng5 {[%clk 0:02:27]}  Re8 {[%clk 0:02:47]} 11. Bxe4 {[%clk 0:02:20]}  dxe4 {[%clk 0:02:46]} 12. Nc3 {[%clk 0:02:20]}  h6 {[%clk 0:02:47]} 13. Ngxe4 {[%clk 0:02:20]}  Bxe4 {[%clk 0:02:46]} 14. Nxe4 {[%clk 0:02:12]}  Bxh2+ {[%clk 0:02:46]} 15. Kf1 {[%clk 0:02:11]}  f5 {[%clk 0:02:37]} 16. Nc3 {[%clk 0:01:48]}  Bc7 {[%clk 0:02:13]} 17. Rxe8+ {[%clk 0:01:39]}  Qxe8 {[%clk 0:02:14]} 18. Qf3 {[%clk 0:01:39]}  Qf7 {[%clk 0:02:11]} 19. d5 {[%clk 0:01:39]}  Nd7 {[%clk 0:02:09]} 20. Bf4 {[%clk 0:01:35]}  Bxf4 {[%clk 0:01:54]} 21. Qxf4 {[%clk 0:01:35]}  Nb6 {[%clk 0:01:53]} 22. Rd1 {[%clk 0:01:23]}  Rd8 {[%clk 0:01:44]} 23. dxc6 {[%clk 0:01:00]}  Rxd1+ {[%clk 0:01:45]} 24. Nxd1 {[%clk 0:01:01]}  bxc6 {[%clk 0:01:45]} 25. Ne3 {[%clk 0:01:01]}  Qf6 {[%clk 0:01:17]} 26. Qxf5 {[%clk 0:00:51]}  Qxb2 {[%clk 0:01:07]} 27. c5 {[%clk 0:00:33]}  Qa1+ {[%clk 0:01:03]} 28. Ke2 {[%clk 0:00:33]}  Qxa2+ {[%clk 0:01:03]} 29. Kf3 {[%clk 0:00:34]}  Na4 {[%clk 0:00:51]} 30. Qc8+ {[%clk 0:00:31]}  Kh7 {[%clk 0:00:52]} 31. Qf5+ {[%clk 0:00:29]}  Kg8 {[%clk 0:00:45]} 32. Qc8+ {[%clk 0:00:29]}  Kh7 {[%clk 0:00:46]} 33. Qxc6 {[%clk 0:00:26]}  Nc3 {[%clk 0:00:46]} 34. Kg3 {[%clk 0:00:14]}  a5 {[%clk 0:00:23]} 35. Qd7 {[%clk 0:00:07]}  Ne4+ {[%clk 0:00:21]} 36. Kf3 {[%clk 0:00:07]}  Ng5+ {[%clk 0:00:17]} 37. Kg3 {[%clk 0:00:07]}  Ne4+ {[%clk 0:00:12]} 38. Kf4 {[%clk 0:00:08]}  Nf6 {[%clk 0:00:11]} 39. Qf5+ {[%clk 0:00:07]}  Kh8 {[%clk 0:00:12]} 40. Qc8+ {[%clk 0:00:07]}  Kh7 {[%clk 0:00:13]} 41. Qf5+ {[%clk 0:00:07]}  Kh8 {[%clk 0:00:13]} 42. Kf3 {[%clk 0:00:07]}  Qa4 {[%clk 0:00:11]} 43. Qc8+ {[%clk 0:00:07]}  Kh7 {[%clk 0:00:11]} 44. Qf5+ {[%clk 0:00:08]}  Kh8 {[%clk 0:00:12]} 45. Qc8+ {[%clk 0:00:08]}  Kh7 {[%clk 0:00:12]} 46. Qf5+ {[%clk 0:00:08]}  Kg8 {[%clk 0:00:11]} 47. Qe6+ {[%clk 0:00:08]}  Kh8 {[%clk 0:00:11]} 48. c6 {[%clk 0:00:08]}  Qh4 {[%clk 0:00:03]} 49. Qc8+ {[%clk 0:00:05]}  Kh7 {[%clk 0:00:03]} 50. Qf5+ {[%clk 0:00:05]}  g6 {[%clk 0:00:04]} 51. Qe6 {[%clk 0:00:05]}  Qh5+ {[%clk 0:00:04]} 52. Kg3 {[%clk 0:00:05]} 1-0


[Site "https://www.chess.com"]

[Event "Titled Tuesday Blitz November 15 Early 2022"]
[White "Szpar, Milosz"]
[Black "Jaskolka, Tomasz"]
[WhiteFideId "1184989"]
[BlackFideId "1170791"]
[WhiteElo "2422"]
[BlackElo "2126"]
[Result "1-0"]
[Round "09"]
[TimeControl "180+1"]
[Date "2022.11.16"]
[WhiteClock "0:00:17"]
[BlackClock "0:00:09"]

1. c4 {[%clk 0:03:00]}  c6 {[%clk 0:02:59]} 2. e4 {[%clk 0:02:57]}  d5 {[%clk 0:02:58]} 3. cxd5 {[%clk 0:02:56]}  cxd5 {[%clk 0:02:58]} 4. exd5 {[%clk 0:02:56]}  Nf6 {[%clk 0:02:59]} 5. Bb5+ {[%clk 0:02:55]}  Nbd7 {[%clk 0:02:58]} 6. Nc3 {[%clk 0:02:54]}  g6 {[%clk 0:02:55]} 7. Nge2 {[%clk 0:02:49]}  Bg7 {[%clk 0:02:55]} 8. O-O {[%clk 0:02:48]}  O-O {[%clk 0:02:55]} 9. Nf4 {[%clk 0:02:47]}  a6 {[%clk 0:02:55]} 10. Bc4 {[%clk 0:02:45]}  Nb6 {[%clk 0:02:53]} 11. d3 {[%clk 0:02:44]}  Bd7 {[%clk 0:02:26]} 12. h3 {[%clk 0:02:39]}  Rc8 {[%clk 0:02:26]} 13. Qb3 {[%clk 0:02:32]}  Qc7 {[%clk 0:02:13]} 14. Be3 {[%clk 0:02:18]}  Nxc4 {[%clk 0:02:13]} 15. dxc4 {[%clk 0:02:18]}  Qxc4 {[%clk 0:02:07]} 16. Qa3 {[%clk 0:02:18]}  Rfe8 {[%clk 0:01:59]} 17. Rac1 {[%clk 0:02:16]}  Ne4 {[%clk 0:01:15]} 18. Nce2 {[%clk 0:02:01]}  Qb5 {[%clk 0:01:15]} 19. Nd4 {[%clk 0:01:50]}  Qa4 {[%clk 0:01:13]} 20. Rxc8 {[%clk 0:01:48]}  Rxc8 {[%clk 0:00:53]} 21. Qd3 {[%clk 0:01:37]}  Nd6 {[%clk 0:00:50]} 22. a3 {[%clk 0:01:35]}  Qc4 {[%clk 0:00:50]} 23. Qd2 {[%clk 0:01:31]}  Ne4 {[%clk 0:00:44]} 24. Qd1 {[%clk 0:01:31]}  Nf6 {[%clk 0:00:40]} 25. Qf3 {[%clk 0:01:28]}  Qc7 {[%clk 0:00:29]} 26. Nd3 {[%clk 0:01:23]}  Qd6 {[%clk 0:00:29]} 27. Nf4 {[%clk 0:00:43]}  Rc4 {[%clk 0:00:22]} 28. Rd1 {[%clk 0:00:43]}  b5 {[%clk 0:00:22]} 29. Nb3 {[%clk 0:00:37]}  Bc8 {[%clk 0:00:20]} 30. Na5 {[%clk 0:00:33]}  Ra4 {[%clk 0:00:19]} 31. Nc6 {[%clk 0:00:33]}  Bb7 {[%clk 0:00:20]} 32. b4 {[%clk 0:00:30]}  Rxa3 {[%clk 0:00:19]} 33. Bc5 {[%clk 0:00:25]}  Rxf3 {[%clk 0:00:16]} 34. Bxd6 {[%clk 0:00:25]}  exd6 {[%clk 0:00:16]} 35. gxf3 {[%clk 0:00:25]}  Nxd5 {[%clk 0:00:16]} 36. Nxd5 {[%clk 0:00:23]}  Kf8 {[%clk 0:00:09]} 37. Rc1 {[%clk 0:00:20]}  Bb2 {[%clk 0:00:08]} 38. Rc2 {[%clk 0:00:20]}  Bg7 {[%clk 0:00:08]} 39. Nc7 {[%clk 0:00:16]}  h5 {[%clk 0:00:07]} 40. Nb8 {[%clk 0:00:16]}  Ke7 {[%clk 0:00:07]} 41. Ncxa6 {[%clk 0:00:16]}  Be5 {[%clk 0:00:07]} 42. Rc7+ {[%clk 0:00:16]}  Kf6 {[%clk 0:00:07]} 43. Rxb7 {[%clk 0:00:17]}  Kf5 {[%clk 0:00:08]} 44. Rxb5 {[%clk 0:00:17]}  Kg5 {[%clk 0:00:08]} 45. Nc6 {[%clk 0:00:18]}  Kh4 {[%clk 0:00:08]} 46. Nxe5 {[%clk 0:00:18]}  dxe5 {[%clk 0:00:09]} 47. Rxe5 {[%clk 0:00:19]}  f5 {[%clk 0:00:10]} 48. Re6 {[%clk 0:00:19]}  g5 {[%clk 0:00:10]} 49. Rg6 {[%clk 0:00:19]}  Kxh3 {[%clk 0:00:10]} 50. Nc5 {[%clk 0:00:18]}  h4 {[%clk 0:00:11]} 51. Nd3 {[%clk 0:00:18]}  f4 {[%clk 0:00:09]} 52. Kh1 {[%clk 0:00:17]}  g4 {[%clk 0:00:09]} 53. Nxf4# {[%clk 0:00:17]} 1-0


[Site "https://www.chess.com"]

[Event "Titled Tuesday Blitz November 15 Early 2022"]
[White "Torres Dominguez, David"]
[Black "Zaichenko, Daria"]
[WhiteFideId "2220857"]
[BlackFideId "4197453"]
[WhiteElo "2037"]
[BlackElo "2039"]
[Result "1/2-1/2"]
[Round "09"]
[TimeControl "180+1"]
[Date "2022.11.16"]
[WhiteClock "0:01:23"]
[BlackClock "0:02:09"]

1. e4 {[%clk 0:02:14]}  c5 {[%clk 0:02:58]} 2. Nf3 {[%clk 0:02:13]}  Nc6 {[%clk 0:02:58]} 3. d4 {[%clk 0:02:14]}  cxd4 {[%clk 0:02:58]} 4. Nxd4 {[%clk 0:02:14]}  Nf6 {[%clk 0:02:58]} 5. Nc3 {[%clk 0:02:13]}  d6 {[%clk 0:02:59]} 6. Nxc6 {[%clk 0:02:12]}  bxc6 {[%clk 0:02:57]} 7. Bd3 {[%clk 0:02:13]}  e5 {[%clk 0:02:54]} 8. O-O {[%clk 0:02:13]}  Be7 {[%clk 0:02:55]} 9. f4 {[%clk 0:02:02]}  Ng4 {[%clk 0:02:47]} 10. Qf3 {[%clk 0:01:50]}  d5 {[%clk 0:02:32]} 11. exd5 {[%clk 0:01:37]}  Bc5+ {[%clk 0:02:32]} 12. Kh1 {[%clk 0:01:35]}  Qh4 {[%clk 0:02:31]} 13. h3 {[%clk 0:01:30]}  Nf2+ {[%clk 0:02:22]} 14. Kh2 {[%clk 0:01:29]}  Ng4+ {[%clk 0:02:09]} 15. Kh1 {[%clk 0:01:27]}  Nf2+ {[%clk 0:02:09]} 16. Kh2 {[%clk 0:01:26]}  Ng4+ {[%clk 0:02:09]} 17. Kh1 {[%clk 0:01:23]} 1/2-1/2


[Site "https://www.chess.com"]

[Event "Titled Tuesday Blitz November 15 Early 2022"]
[White "Tregubov, Pavel V."]
[Black "Donskov, Anatoly"]
[WhiteFideId "4115341"]
[BlackFideId "24143413"]
[WhiteElo "2448"]
[BlackElo "2219"]
[Result "0-1"]
[Round "09"]
[TimeControl "180+1"]
[Date "2022.11.16"]
[WhiteClock "0:00:13"]
[BlackClock "0:00:05"]

1. e4 {[%clk 0:03:00]}  c5 {[%clk 0:02:59]} 2. Nf3 {[%clk 0:03:00]}  e6 {[%clk 0:03:00]} 3. c3 {[%clk 0:02:57]}  d5 {[%clk 0:03:00]} 4. exd5 {[%clk 0:02:57]}  Qxd5 {[%clk 0:03:01]} 5. d4 {[%clk 0:02:58]}  Nf6 {[%clk 0:03:01]} 6. Be2 {[%clk 0:02:58]}  Be7 {[%clk 0:03:01]} 7. O-O {[%clk 0:02:57]}  Nc6 {[%clk 0:03:01]} 8. c4 {[%clk 0:02:56]}  Qd8 {[%clk 0:02:55]} 9. dxc5 {[%clk 0:02:57]}  Qxd1 {[%clk 0:02:55]} 10. Rxd1 {[%clk 0:02:56]}  Bxc5 {[%clk 0:02:56]} 11. Nc3 {[%clk 0:02:56]}  O-O {[%clk 0:02:47]} 12. a3 {[%clk 0:02:57]}  Ng4 {[%clk 0:02:39]} 13. Ne4 {[%clk 0:02:55]}  Bb6 {[%clk 0:02:38]} 14. c5 {[%clk 0:02:39]}  f5 {[%clk 0:02:26]} 15. cxb6 {[%clk 0:02:27]}  fxe4 {[%clk 0:02:26]} 16. Ng5 {[%clk 0:02:27]}  Nxf2 {[%clk 0:02:03]} 17. Rf1 {[%clk 0:02:23]}  Nd3 {[%clk 0:01:57]} 18. Rxf8+ {[%clk 0:02:07]}  Kxf8 {[%clk 0:01:58]} 19. Be3 {[%clk 0:02:07]}  axb6 {[%clk 0:01:46]} 20. Nxe4 {[%clk 0:02:03]}  Nxb2 {[%clk 0:01:20]} 21. Bxb6 {[%clk 0:02:02]}  e5 {[%clk 0:01:06]} 22. Bc5+ {[%clk 0:01:52]}  Kg8 {[%clk 0:00:51]} 23. Rb1 {[%clk 0:01:52]}  Na4 {[%clk 0:00:50]} 24. Bc4+ {[%clk 0:01:52]}  Kh8 {[%clk 0:00:50]} 25. Rf1 {[%clk 0:01:36]}  Bg4 {[%clk 0:00:36]} 26. Bd6 {[%clk 0:01:22]}  Bh5 {[%clk 0:00:32]} 27. Ng5 {[%clk 0:01:14]}  Nb6 {[%clk 0:00:24]} 28. Ba2 {[%clk 0:00:52]}  h6 {[%clk 0:00:24]} 29. Nf7+ {[%clk 0:00:51]}  Kh7 {[%clk 0:00:24]} 30. Rb1 {[%clk 0:00:45]}  Ra6 {[%clk 0:00:18]} 31. Nxe5 {[%clk 0:00:27]}  Nxe5 {[%clk 0:00:17]} 32. Bxe5 {[%clk 0:00:28]}  Bg6 {[%clk 0:00:17]} 33. Rb3 {[%clk 0:00:23]}  Nd7 {[%clk 0:00:14]} 34. Bd4 {[%clk 0:00:21]}  b6 {[%clk 0:00:13]} 35. Rc3 {[%clk 0:00:18]}  Nc5 {[%clk 0:00:12]} 36. Bc4 {[%clk 0:00:15]}  Ra4 {[%clk 0:00:11]} 37. Bxc5 {[%clk 0:00:15]}  bxc5 {[%clk 0:00:12]} 38. Bb5 {[%clk 0:00:14]}  Ra7 {[%clk 0:00:09]} 39. a4 {[%clk 0:00:13]}  Rc7 {[%clk 0:00:10]} 40. a5 {[%clk 0:00:13]}  Be4 {[%clk 0:00:10]} 41. a6 {[%clk 0:00:13]}  Kg6 {[%clk 0:00:07]} 42. Kf2 {[%clk 0:00:14]}  Kf6 {[%clk 0:00:07]} 43. Ke3 {[%clk 0:00:14]}  Ke5 {[%clk 0:00:07]} 44. Ra3 {[%clk 0:00:13]}  Ra7 {[%clk 0:00:06]} 45. Bc4 {[%clk 0:00:13]}  Bxg2 {[%clk 0:00:05]} 46. Ra5 {[%clk 0:00:12]}  Kd6 {[%clk 0:00:04]} 47. Kf4 {[%clk 0:00:12]}  Bc6 {[%clk 0:00:05]} 48. Ra1 {[%clk 0:00:11]}  Ba8 {[%clk 0:00:04]} 49. Rd1+ {[%clk 0:00:11]}  Kc7 {[%clk 0:00:04]} 50. Re1 {[%clk 0:00:10]}  Kb6 {[%clk 0:00:04]} 51. Re6+ {[%clk 0:00:10]}  Ka5 {[%clk 0:00:05]} 52. Re8 {[%clk 0:00:10]}  Kb4 {[%clk 0:00:05]} 53. Bf1 {[%clk 0:00:10]}  Bc6 {[%clk 0:00:05]} 54. Rb8+ {[%clk 0:00:10]}  Kc3 {[%clk 0:00:04]} 55. Ke5 {[%clk 0:00:10]}  c4 {[%clk 0:00:04]} 56. Kd6 {[%clk 0:00:10]}  Rxa6 {[%clk 0:00:04]} 57. Kc5 {[%clk 0:00:10]}  Be4 {[%clk 0:00:04]} 58. Re8 {[%clk 0:00:09]}  Bd3 {[%clk 0:00:03]} 59. Re3 {[%clk 0:00:08]}  Ra5+ {[%clk 0:00:03]} 60. Kb6 {[%clk 0:00:08]}  Rf5 {[%clk 0:00:04]} 61. Bh3 {[%clk 0:00:06]}  Rf4 {[%clk 0:00:04]} 62. Be6 {[%clk 0:00:07]}  Kd2 {[%clk 0:00:04]} 63. Rg3 {[%clk 0:00:07]}  c3 {[%clk 0:00:04]} 64. Bb3 {[%clk 0:00:08]}  c2 {[%clk 0:00:04]} 65. Bxc2 {[%clk 0:00:09]}  Kxc2 {[%clk 0:00:04]} 66. Rxg7 {[%clk 0:00:09]}  Kc3 {[%clk 0:00:04]} 67. Kc5 {[%clk 0:00:10]}  Rh4 {[%clk 0:00:04]} 68. Rg2 {[%clk 0:00:10]}  Rh3 {[%clk 0:00:04]} 69. Rf2 {[%clk 0:00:10]}  h5 {[%clk 0:00:04]} 70. Kd5 {[%clk 0:00:10]}  Bc4+ {[%clk 0:00:03]} 71. Ke5 {[%clk 0:00:11]}  Kd3 {[%clk 0:00:04]} 72. Kf5 {[%clk 0:00:11]}  Ke3 {[%clk 0:00:04]} 73. Rc2 {[%clk 0:00:12]}  Bd3+ {[%clk 0:00:05]} 74. Kg5 {[%clk 0:00:13]}  Bxc2 {[%clk 0:00:05]} 0-1


[Site "https://www.chess.com"]